[Event "Rapid Tournament (RAP)"]
[Site "Biel, Switzerland"]
[Date "2026.07.12"]
[Round "5.36"]
[White "Brixius, Dirk"]
[Black "Arntz, Christoph"]
[Result "1/2-1/2"]
[TimeControl "15 + 5"]
[WhiteTitle "-"]
[BlackTitle "-"]
[WhiteFideId "12909734"]
[BlackFideId "16257723"]
[WhiteElo "1821"]
[BlackElo "1999"]

1. c4 {[%clk 00:00:00]} {[%emt 00:13:58]} Nf6 {[%clk 00:00:00]} {[%emt
00:00:02]} 2. Nc3 {[%clk 00:00:00]} {[%emt 00:00:04]} c5 {[%clk 00:00:00]}
{[%emt 00:00:16]} 3. e4 {[%clk 00:00:00]} {[%emt 00:00:12]} Nc6 {[%clk
00:00:00]} {[%emt 00:00:04]} 4. Nf3 {[%clk 00:00:00]} {[%emt 00:00:08]} d6
{[%clk 00:00:00]} {[%emt 00:00:02]} 5. d3 {[%clk 00:00:00]} {[%emt 00:00:08]}
e6 {[%clk 00:00:00]} {[%emt 00:00:32]} 6. g3 {[%clk 00:00:00]} {[%emt
00:00:10]} Be7 {[%clk 00:14:58]} {[%emt 00:00:16]} 7. Bg2 {[%clk 00:15:08]}
{[%emt 00:00:03]} O-O {[%clk 00:14:49]} {[%emt 00:00:13]} 8. O-O {[%clk
00:15:10]} {[%emt 00:00:04]} h6 {[%clk 00:14:40]} {[%emt 00:00:14]} 9. a3
{[%clk 00:15:05]} {[%emt 00:00:10]} Nd4 {[%clk 00:14:17]} {[%emt 00:00:28]} 10.
b4 {[%clk 00:14:51]} {[%emt 00:00:19]} Bd7 {[%clk 00:14:05]} {[%emt 00:00:17]}
11. b5 {[%clk 00:14:38]} {[%emt 00:00:18]} e5 {[%clk 00:13:35]} {[%emt
00:00:35]} 12. Nxd4 {[%clk 00:14:00]} {[%emt 00:00:43]} cxd4 {[%clk 00:13:35]}
{[%emt 00:00:05]} 13. Nd5 {[%clk 00:13:55]} {[%emt 00:00:10]} Nxd5 {[%clk
00:13:27]} {[%emt 00:00:13]} 14. exd5 {[%clk 00:13:57]} {[%emt 00:00:02]} a6
{[%clk 00:12:05]} {[%emt 00:01:28]} 15. bxa6 {[%clk 00:12:57]} {[%emt
00:01:05]} Rxa6 {[%clk 00:11:23]} {[%emt 00:00:47]} 16. Bd2 {[%clk 00:12:57]}
{[%emt 00:00:04]} b5 {[%clk 00:10:51]} {[%emt 00:00:38]} 17. f4 {[%clk
00:12:41]} {[%emt 00:00:21]} bxc4 {[%clk 00:10:14]} {[%emt 00:00:42]} 18. dxc4
{[%clk 00:12:45]} {[%emt 00:00:01]} exf4 {[%clk 00:09:08]} {[%emt 00:01:12]} 19.
Rxf4 {[%clk 00:12:48]} {[%emt 00:00:02]} Bf6 {[%clk 00:08:40]} {[%emt
00:00:32]} 20. Bb4 {[%clk 00:12:35]} {[%emt 00:00:18]} Be5 {[%clk 00:08:10]}
{[%emt 00:00:35]} 21. Rf2 {[%clk 00:12:13]} {[%emt 00:00:26]} d3 {[%clk
00:07:11]} {[%emt 00:01:05]} 22. Raa2 {[%clk 00:11:18]} {[%emt 00:01:00]} Bd4
{[%clk 00:07:04]} {[%emt 00:00:12]} 23. Qxd3 {[%clk 00:11:21]} {[%emt
00:00:02]} Bxf2+ {[%clk 00:07:07]} {[%emt 00:00:02]} 24. Rxf2 {[%clk 00:11:25]}
{[%emt 00:00:01]} 1/2-1/2

[Event "Rapid Tournament (RAP)"]
[Site "Biel, Switzerland"]
[Date "2026.07.12"]
[Round "5.37"]
[White "Javet, Blaise"]
[Black "Alrefae, Ahmad"]
[Result "0-1"]
[TimeControl "15 + 5"]
[WhiteTitle "-"]
[BlackTitle "-"]
[WhiteFideId "1305026"]
[BlackFideId "10306510"]
[WhiteElo "1980"]
[BlackElo "1797"]

1. Nf3 {[%clk 00:15:08]} {[%emt 00:00:01]} f5 {[%clk 00:15:04]} {[%emt
00:00:07]} 2. d4 {[%clk 00:15:10]} {[%emt 00:00:02]} e6 {[%clk 00:15:08]}
{[%emt 00:00:02]} 3. g3 {[%clk 00:15:10]} {[%emt 00:00:04]} Nf6 {[%clk
00:15:12]} 4. Bg2 {[%clk 00:15:13]} {[%emt 00:00:03]} d6 {[%clk 00:15:16]}
{[%emt 00:00:02]} 5. c4 {[%clk 00:15:08]} {[%emt 00:00:09]} Be7 {[%clk
00:15:20]} 6. Nc3 {[%clk 00:15:10]} {[%emt 00:00:03]} O-O {[%clk 00:15:23]}
{[%emt 00:00:03]} 7. Qc2 {[%clk 00:15:05]} {[%emt 00:00:10]} Nc6 {[%clk
00:15:16]} {[%emt 00:00:13]} 8. O-O {[%clk 00:14:50]} {[%emt 00:00:18]} e5
{[%clk 00:15:14]} {[%emt 00:00:08]} 9. d5 {[%clk 00:13:35]} {[%emt 00:01:20]}
Nb4 {[%clk 00:15:15]} {[%emt 00:00:04]} 10. Qb3 {[%clk 00:13:37]} {[%emt
00:00:02]} a5 {[%clk 00:15:16]} {[%emt 00:00:05]} 11. Ng5 {[%clk 00:13:01]}
{[%emt 00:00:41]} Qe8 {[%clk 00:15:05]} {[%emt 00:00:16]} 12. c5 {[%clk
00:10:17]} {[%emt 00:02:49]} Na6 {[%clk 00:14:43]} {[%emt 00:00:27]} 13. Be3
{[%clk 00:09:16]} {[%emt 00:01:06]} Ng4 {[%clk 00:14:22]} {[%emt 00:00:26]} 14.
Ne6 {[%clk 00:08:29]} {[%emt 00:00:52]} Qh5 {[%clk 00:14:07]} {[%emt 00:00:20]}
15. h3 {[%clk 00:08:19]} {[%emt 00:00:14]} Nxe3 {[%clk 00:13:43]} {[%emt
00:00:30]} 16. fxe3 {[%clk 00:08:03]} {[%emt 00:00:21]} Bxe6 {[%clk 00:13:45]}
{[%emt 00:00:02]} 17. dxe6 {[%clk 00:07:23]} {[%emt 00:00:46]} Nxc5 {[%clk
00:13:49]} {[%emt 00:00:02]} 18. Qc2 {[%clk 00:07:27]} {[%emt 00:00:01]} c6
{[%clk 00:13:46]} {[%emt 00:00:07]} 19. e4 {[%clk 00:05:32]} {[%emt 00:01:59]}
f4 {[%clk 00:12:58]} {[%emt 00:00:53]} 20. g4 {[%clk 00:05:35]} {[%emt
00:00:02]} Qg6 {[%clk 00:12:51]} {[%emt 00:00:12]} 21. Na4 {[%clk 00:05:10]}
{[%emt 00:00:30]} Nxa4 {[%clk 00:12:44]} {[%emt 00:00:13]} 22. Qxa4 {[%clk
00:05:14]} {[%emt 00:00:01]} Qxe6 {[%emt 00:00:31]} 23. Rac1 {[%clk 00:04:50]}
b5 {[%clk 00:12:07]} {[%emt 00:00:45]} 24. Qc2 {[%clk 00:04:34]} {[%emt
00:00:20]} c5 {[%clk 00:12:11]} {[%emt 00:00:02]} 25. b3 {[%clk 00:04:34]}
{[%emt 00:00:05]} a4 {[%clk 00:11:57]} {[%emt 00:00:19]} 26. Qd3 {[%clk
00:03:50]} {[%emt 00:00:49]} b4 {[%clk 00:11:25]} {[%emt 00:00:38]} 27. e3
{[%clk 00:03:43]} {[%emt 00:00:12]} Bg5 {[%clk 00:11:09]} {[%emt 00:00:21]} 28.
exf4 {[%clk 00:03:28]} {[%emt 00:00:20]} Bxf4 {[%clk 00:11:09]} {[%emt
00:00:05]} 29. Rcd1 {[%clk 00:03:30]} {[%emt 00:00:03]} axb3 {[%clk 00:10:55]}
{[%emt 00:00:18]} 30. axb3 {[%clk 00:03:28]} {[%emt 00:00:07]} Rfd8 {[%clk
00:10:52]} {[%emt 00:00:08]} 31. Qd5 {[%clk 00:02:33]} {[%emt 00:01:00]} Qxd5
{[%clk 00:10:50]} {[%emt 00:00:07]} 32. Rxd5 {[%clk 00:02:35]} {[%emt
00:00:03]} Ra3 {[%clk 00:10:47]} {[%emt 00:00:08]} 33. Rf3 {[%clk 00:02:13]}
{[%emt 00:00:27]} Kf7 {[%clk 00:10:41]} {[%emt 00:00:12]} 34. Bf1 {[%clk
00:02:15]} {[%emt 00:00:02]} Ke7 {[%clk 00:10:25]} {[%emt 00:00:21]} 35. Bc4
{[%clk 00:01:51]} {[%emt 00:00:29]} Rda8 {[%clk 00:10:11]} {[%emt 00:00:19]} 36.
Rfd3 {[%clk 00:01:43]} {[%emt 00:00:13]} Ra1+ {[%clk 00:10:07]} {[%emt
00:00:10]} 37. Rd1 {[%clk 00:01:17]} {[%emt 00:00:31]} Be3+ {[%clk 00:10:10]}
{[%emt 00:00:01]} 38. Kg2 {[%clk 00:00:55]} {[%emt 00:00:26]} Bd4 {[%clk
00:10:13]} {[%emt 00:00:03]} 39. Rxa1 {[%clk 00:00:28]} {[%emt 00:00:32]} Rxa1
{[%clk 00:10:17]} {[%emt 00:00:01]} 40. h4 {[%clk 00:00:23]} {[%emt 00:00:10]}
Rc1 {[%clk 00:09:22]} {[%emt 00:01:01]} 41. h5 {[%clk 00:00:24]} {[%emt
00:00:03]} Rxc4 {[%clk 00:09:20]} {[%emt 00:00:07]} 0-1

[Event "Rapid Tournament (RAP)"]
[Site "Biel, Switzerland"]
[Date "2026.07.12"]
[Round "5.38"]
[White "Yang, Sung-Jui"]
[Black "Liengme, Samuel"]
[Result "1-0"]
[TimeControl "15 + 5"]
[WhiteTitle "-"]
[BlackTitle "-"]
[WhiteFideId "16301048"]
[BlackFideId "1368141"]
[WhiteElo "1825"]
[BlackElo "1967"]

1. d4 {[%clk 00:15:09]} Nf6 {[%clk 00:15:08]} {[%emt 00:00:02]} 2. Nf3 {[%clk
00:15:13]} {[%emt 00:00:01]} d6 {[%clk 00:15:07]} {[%emt 00:00:05]} 3. c4
{[%clk 00:15:17]} {[%emt 00:00:02]} g6 {[%clk 00:15:10]} {[%emt 00:00:02]} 4.
Nc3 {[%clk 00:15:21]} {[%emt 00:00:01]} Bg7 {[%clk 00:15:13]} {[%emt 00:00:01]}
5. e4 {[%clk 00:15:25]} {[%emt 00:00:01]} O-O {[%clk 00:15:11]} {[%emt
00:00:06]} 6. h3 {[%clk 00:15:29]} {[%emt 00:00:02]} c5 {[%clk 00:14:56]}
{[%emt 00:00:20]} 7. d5 {[%clk 00:15:33]} {[%emt 00:00:01]} a6 {[%clk
00:14:52]} {[%emt 00:00:09]} 8. a4 {[%clk 00:15:37]} {[%emt 00:00:02]} Re8
{[%clk 00:14:24]} {[%emt 00:00:33]} 9. Bd3 {[%clk 00:15:40]} {[%emt 00:00:01]}
e6 {[%clk 00:14:19]} {[%emt 00:00:09]} 10. O-O {[%clk 00:15:43]} {[%emt
00:00:02]} exd5 {[%clk 00:14:12]} {[%emt 00:00:12]} 11. cxd5 {[%clk 00:15:47]}
{[%emt 00:00:02]} Nbd7 {[%clk 00:13:19]} {[%emt 00:00:58]} 12. Bf4 {[%clk
00:15:27]} {[%emt 00:00:25]} Qb6 {[%clk 00:13:23]} {[%emt 00:00:02]} 13. Qc2
{[%clk 00:15:19]} {[%emt 00:00:13]} Nh5 {[%clk 00:12:56]} {[%emt 00:00:31]} 14.
Be3 {[%clk 00:14:31]} {[%emt 00:00:53]} Ne5 {[%clk 00:12:30]} {[%emt 00:00:31]}
15. Be2 {[%clk 00:14:35]} {[%emt 00:00:01]} a5 {[%clk 00:12:09]} {[%emt
00:00:26]} 16. Nd2 {[%clk 00:14:23]} {[%emt 00:00:17]} Nf6 {[%clk 00:11:53]}
{[%emt 00:00:21]} 17. f4 {[%clk 00:14:13]} {[%emt 00:00:15]} Ned7 {[%clk
00:11:38]} {[%emt 00:00:20]} 18. Nc4 {[%clk 00:14:17]} {[%emt 00:00:01]} Qc7
{[%clk 00:11:38]} {[%emt 00:00:05]} 19. Nb5 {[%clk 00:14:21]} {[%emt 00:00:02]}
Qb8 {[%clk 00:10:58]} {[%emt 00:00:44]} 20. Nbxd6 {[%clk 00:14:03]} {[%emt
00:00:23]} Re7 {[%clk 00:10:53]} {[%emt 00:00:10]} 21. Rad1 {[%clk 00:13:04]}
{[%emt 00:01:02]} b6 {[%clk 00:10:31]} {[%emt 00:00:30]} 22. Bf3 {[%clk
00:11:55]} {[%emt 00:01:13]} Ba6 {[%clk 00:10:12]} {[%emt 00:00:23]} 23. Rfe1
{[%clk 00:11:41]} {[%emt 00:00:18]} Ne8 {[%clk 00:09:07]} {[%emt 00:01:12]} 24.
e5 {[%clk 00:10:59]} {[%emt 00:00:48]} Nxd6 {[%clk 00:07:26]} {[%emt 00:01:45]}
25. Nxd6 {[%clk 00:11:01]} {[%emt 00:00:03]} g5 {[%clk 00:06:39]} {[%emt
00:00:52]} 26. Nf5 {[%clk 00:10:51]} {[%emt 00:00:15]} Re8 {[%clk 00:06:31]}
{[%emt 00:00:13]} 27. Nxg7 {[%clk 00:07:09]} {[%emt 00:03:46]} Kxg7 {[%clk
00:06:35]} {[%emt 00:00:02]} 28. Qf5 {[%clk 00:07:13]} {[%emt 00:00:01]} Nxe5
{[%clk 00:05:14]} {[%emt 00:01:25]} 29. Qxg5+ {[%clk 00:06:55]} {[%emt
00:00:23]} Ng6 {[%clk 00:05:14]} {[%emt 00:00:05]} 30. f5 {[%clk 00:06:40]}
{[%emt 00:00:21]} Qe5 {[%clk 00:03:00]} {[%emt 00:02:19]} 31. Qh6+ {[%clk
00:05:45]} {[%emt 00:00:58]} Kh8 {[%clk 00:02:52]} {[%emt 00:00:14]} 32. fxg6
{[%clk 00:05:42]} {[%emt 00:00:08]} fxg6 {[%clk 00:02:48]} {[%emt 00:00:08]} 33.
d6 {[%clk 00:04:43]} {[%emt 00:01:05]} Rad8 {[%clk 00:02:39]} {[%emt 00:00:14]}
34. Bg5 {[%clk 00:03:39]} {[%emt 00:01:08]} 1-0

[Event "Rapid Tournament (RAP)"]
[Site "Biel, Switzerland"]
[Date "2026.07.12"]
[Round "5.39"]
[White "Papageorgiou Martinella, Ilios"]
[Black "Schwab, Felix"]
[Result "1/2-1/2"]
[TimeControl "15 + 5"]
[WhiteTitle "-"]
[BlackTitle "-"]
[WhiteFideId "1368494"]
[BlackFideId "1311450"]
[WhiteElo "1809"]
[BlackElo "1945"]

1. d4 {[%clk 00:15:08]} {[%emt 00:00:04]} Nf6 {[%clk 00:15:09]} 2. c4 {[%clk
00:15:00]} {[%emt 00:00:13]} e6 {[%clk 00:15:12]} {[%emt 00:00:01]} 3. Nc3
{[%clk 00:15:03]} {[%emt 00:00:02]} Bb4 {[%clk 00:15:16]} {[%emt 00:00:01]} 4.
f3 {[%clk 00:15:08]} c5 {[%clk 00:15:02]} {[%emt 00:00:18]} 5. d5 {[%clk
00:15:11]} {[%emt 00:00:02]} b5 {[%clk 00:14:25]} {[%emt 00:00:43]} 6. e4
{[%clk 00:15:14]} {[%emt 00:00:01]} bxc4 {[%clk 00:14:05]} {[%emt 00:00:25]} 7.
Bxc4 {[%clk 00:15:18]} exd5 {[%clk 00:14:09]} {[%emt 00:00:02]} 8. Bxd5 {[%clk
00:15:13]} {[%emt 00:00:09]} Nxd5 {[%clk 00:13:53]} {[%emt 00:00:21]} 9. Qxd5
{[%clk 00:15:17]} {[%emt 00:00:01]} Nc6 {[%clk 00:13:12]} {[%emt 00:00:47]} 10.
Nge2 {[%clk 00:15:19]} {[%emt 00:00:02]} O-O {[%clk 00:12:20]} {[%emt
00:00:57]} 11. O-O {[%clk 00:15:19]} {[%emt 00:00:05]} Bb7 {[%clk 00:11:41]}
{[%emt 00:00:44]} 12. a3 {[%clk 00:14:47]} {[%emt 00:00:37]} Na5 {[%emt
00:02:26]} 13. Qf5 {[%clk 00:14:10]} Bxc3 {[%clk 00:09:24]} {[%emt 00:00:42]}
14. Nxc3 {[%clk 00:14:08]} {[%emt 00:00:07]} Nb3 {[%clk 00:09:04]} {[%emt
00:00:25]} 15. Rb1 {[%clk 00:14:07]} {[%emt 00:00:06]} Qb6 {[%clk 00:06:42]}
{[%emt 00:02:26]} 16. Be3 {[%clk 00:13:32]} {[%emt 00:00:42]} Qe6 {[%clk
00:06:04]} {[%emt 00:00:42]} 17. Qxe6 {[%clk 00:12:13]} {[%emt 00:01:24]} dxe6
{[%clk 00:05:42]} {[%emt 00:00:28]} 18. Rbd1 {[%clk 00:12:08]} {[%emt
00:00:09]} Rac8 {[%clk 00:04:50]} {[%emt 00:00:57]} 19. Rd7 {[%clk 00:11:46]}
{[%emt 00:00:27]} Rb8 {[%clk 00:04:34]} {[%emt 00:00:22]} 20. Rfd1 {[%clk
00:11:27]} {[%emt 00:00:23]} e5 {[%clk 00:03:07]} {[%emt 00:01:32]} 21. Re7
{[%clk 00:10:59]} {[%emt 00:00:33]} Rfe8 {[%clk 00:02:36]} {[%emt 00:00:36]} 22.
Rxe8+ {[%clk 00:10:49]} {[%emt 00:00:14]} Rxe8 {[%clk 00:02:40]} {[%emt
00:00:02]} 23. Rd7 {[%clk 00:10:52]} {[%emt 00:00:01]} Rb8 {[%clk 00:02:34]}
{[%emt 00:00:12]} 24. Rc7 {[%clk 00:10:48]} {[%emt 00:00:09]} Kf8 {[%clk
00:02:20]} {[%emt 00:00:20]} 25. Bxc5+ {[%clk 00:10:51]} {[%emt 00:00:02]} Nxc5
{[%clk 00:02:21]} {[%emt 00:00:03]} 26. Rxc5 {[%clk 00:10:54]} {[%emt
00:00:02]} f6 {[%clk 00:02:23]} {[%emt 00:00:03]} 27. b4 {[%clk 00:10:53]}
{[%emt 00:00:06]} Rd8 {[%clk 00:02:22]} {[%emt 00:00:06]} 28. Rc7 {[%clk
00:10:41]} {[%emt 00:00:17]} Rb8 {[%clk 00:02:00]} {[%emt 00:00:27]} 29. Nb5
{[%clk 00:10:36]} {[%emt 00:00:10]} Bxe4 {[%clk 00:01:45]} {[%emt 00:00:21]} 30.
fxe4 {[%clk 00:10:40]} {[%emt 00:00:01]} Rxb5 {[%clk 00:01:45]} {[%emt
00:00:05]} 31. Rxa7 {[%clk 00:10:44]} Rb6 {[%clk 00:01:46]} {[%emt 00:00:03]}
32. Ra5 {[%clk 00:10:45]} {[%emt 00:00:05]} Kf7 {[%clk 00:01:42]} {[%emt
00:00:09]} 33. b5 {[%clk 00:10:48]} {[%emt 00:00:01]} Rd6 {[%clk 00:01:43]}
{[%emt 00:00:05]} 34. a4 {[%clk 00:10:49]} {[%emt 00:00:04]} Rd2 {[%clk
00:01:42]} {[%emt 00:00:05]} 35. Ra7+ {[%clk 00:10:35]} {[%emt 00:00:19]} Kg6
{[%clk 00:01:45]} {[%emt 00:00:02]} 36. b6 {[%clk 00:10:37]} {[%emt 00:00:03]}
Kg5 {[%clk 00:01:26]} {[%emt 00:00:24]} 37. b7 {[%clk 00:10:41]} {[%emt
00:00:02]} Rb2 {[%clk 00:01:27]} {[%emt 00:00:04]} 38. g3 {[%clk 00:10:30]}
{[%emt 00:00:15]} Kg4 {[%clk 00:01:29]} {[%emt 00:00:03]} 39. b8=Q {[%emt
00:00:26]} Rxb8 {[%clk 00:01:31]} {[%emt 00:00:02]} 40. Rxg7+ {[%clk 00:10:14]}
{[%emt 00:00:01]} Kf3 {[%clk 00:01:35]} {[%emt 00:00:02]} 41. h4 {[%clk
00:10:11]} {[%emt 00:00:07]} Rb1+ {[%clk 00:01:15]} {[%emt 00:00:25]} 42. Kh2
{[%clk 00:10:15]} {[%emt 00:00:01]} Rb2+ {[%clk 00:01:17]} {[%emt 00:00:04]} 43.
Kg1 {[%clk 00:09:57]} {[%emt 00:00:22]} h5 {[%clk 00:01:06]} {[%emt 00:00:16]}
44. Rg6 {[%clk 00:09:46]} {[%emt 00:00:16]} Rb1+ {[%clk 00:01:03]} {[%emt
00:00:09]} 45. Kh2 {[%clk 00:09:48]} {[%emt 00:00:03]} Rb2+ {[%clk 00:01:04]}
{[%emt 00:00:04]} 46. Kh3 {[%clk 00:09:51]} f5 {[%clk 00:00:44]} {[%emt
00:00:26]} 47. exf5 {[%clk 00:09:16]} {[%emt 00:00:39]} Rb1 {[%clk 00:00:42]}
{[%emt 00:00:07]} 48. Kh2 {[%clk 00:09:12]} {[%emt 00:00:09]} Rb2+ {[%clk
00:00:45]} {[%emt 00:00:02]} 49. Kg1 {[%clk 00:09:16]} {[%emt 00:00:01]} Rb1+
{[%emt 00:00:10]} 1/2-1/2

[Event "Rapid Tournament (RAP)"]
[Site "Biel, Switzerland"]
[Date "2026.07.12"]
[Round "5.40"]
[White "Mueller, Ladina"]
[Black "Hashem, Khaled"]
[Result "0-1"]
[TimeControl "15 + 5"]
[WhiteTitle "-"]
[BlackTitle "-"]
[WhiteFideId "1351907"]
[BlackFideId "10300201"]
[WhiteElo "1807"]
[BlackElo "1926"]

1. c4 {[%clk 00:15:07]} {[%emt 00:00:02]} c6 {[%clk 00:15:09]} {[%emt
00:00:04]} 2. Nc3 {[%clk 00:15:10]} d5 {[%clk 00:15:13]} 3. cxd5 {[%clk
00:15:13]} {[%emt 00:00:02]} cxd5 {[%clk 00:15:17]} {[%emt 00:00:01]} 4. d4
{[%clk 00:15:16]} {[%emt 00:00:02]} Nf6 {[%clk 00:15:21]} {[%emt 00:00:01]} 5.
g3 {[%clk 00:15:18]} {[%emt 00:00:02]} Nc6 {[%clk 00:15:25]} {[%emt 00:00:02]}
6. e3 {[%clk 00:15:20]} {[%emt 00:00:03]} Bf5 {[%clk 00:15:28]} {[%emt
00:00:02]} 7. a3 {[%clk 00:15:15]} {[%emt 00:00:10]} e6 {[%clk 00:15:30]}
{[%emt 00:00:03]} 8. Bg2 {[%clk 00:15:17]} {[%emt 00:00:02]} Be7 {[%clk
00:15:30]} {[%emt 00:00:05]} 9. Nf3 {[%clk 00:15:06]} {[%emt 00:00:16]} h6
{[%clk 00:15:35]} {[%emt 00:00:02]} 10. b4 {[%clk 00:14:56]} {[%emt 00:00:14]}
Rc8 {[%clk 00:15:31]} {[%emt 00:00:09]} 11. Bb2 {[%clk 00:14:53]} {[%emt
00:00:07]} a6 {[%clk 00:15:34]} {[%emt 00:00:03]} 12. Na4 {[%clk 00:14:39]}
{[%emt 00:00:18]} O-O {[%clk 00:13:01]} {[%emt 00:02:39]} 13. O-O {[%clk
00:14:32]} {[%emt 00:00:12]} Ne4 {[%clk 00:11:10]} {[%emt 00:01:56]} 14. Rc1
{[%clk 00:13:51]} {[%emt 00:00:45]} b5 {[%clk 00:10:08]} {[%emt 00:01:08]} 15.
Nc5 {[%clk 00:13:37]} {[%emt 00:00:19]} Nxc5 {[%clk 00:10:05]} {[%emt
00:00:09]} 16. dxc5 {[%clk 00:13:34]} {[%emt 00:00:07]} Bg4 {[%clk 00:08:48]}
{[%emt 00:01:22]} 17. Qd2 {[%clk 00:13:10]} {[%emt 00:00:27]} Bxf3 {[%clk
00:08:22]} {[%emt 00:00:33]} 18. Bxf3 {[%clk 00:13:12]} {[%emt 00:00:03]} Bf6
{[%clk 00:08:15]} {[%emt 00:00:12]} 19. Rcd1 {[%clk 00:12:39]} {[%emt
00:00:37]} Ne5 {[%clk 00:07:54]} {[%emt 00:00:27]} 20. Bxe5 {[%clk 00:12:30]}
{[%emt 00:00:14]} Bxe5 {[%clk 00:07:58]} {[%emt 00:00:02]} 21. Bg2 {[%clk
00:12:17]} {[%emt 00:00:17]} a5 {[%clk 00:07:50]} {[%emt 00:00:14]} 22. f4
{[%clk 00:12:01]} {[%emt 00:00:18]} Bf6 {[%clk 00:07:51]} {[%emt 00:00:06]} 23.
Qc2 {[%clk 00:11:27]} {[%emt 00:00:37]} axb4 {[%clk 00:07:36]} {[%emt
00:00:23]} 24. axb4 {[%clk 00:11:26]} {[%emt 00:00:06]} Qc7 {[%clk 00:07:40]}
{[%emt 00:00:01]} 25. e4 {[%clk 00:11:06]} {[%emt 00:00:24]} dxe4 {[%clk
00:07:33]} {[%emt 00:00:12]} 26. Bxe4 {[%clk 00:11:00]} {[%emt 00:00:11]} Rfd8
{[%clk 00:07:34]} {[%emt 00:00:04]} 27. Bd3 {[%clk 00:10:44]} {[%emt 00:00:20]}
Rd4 {[%clk 00:07:34]} {[%emt 00:00:06]} 28. Bxb5 {[%clk 00:09:36]} {[%emt
00:01:13]} Rxb4 {[%clk 00:07:34]} {[%emt 00:00:04]} 29. Rd7 {[%clk 00:08:39]}
{[%emt 00:01:03]} Qa5 {[%clk 00:05:09]} {[%emt 00:02:31]} 30. Be2 {[%clk
00:07:54]} {[%emt 00:00:47]} Rb2 {[%clk 00:05:04]} {[%emt 00:00:12]} 31. Qd3
{[%clk 00:07:46]} {[%emt 00:00:12]} Qxc5+ {[%clk 00:04:55]} {[%emt 00:00:15]}
32. Kh1 {[%clk 00:07:33]} {[%emt 00:00:17]} Rxe2 {[%clk 00:04:50]} {[%emt
00:00:11]} 0-1